[Event "Titled Tuesday Blitz March 15 Late 2022"]
[White "Cagara, Paulina"]
[Black "Zhurbinsky, David"]
[WhiteFideId "1124870"]
[BlackFideId "2072904"]
[WhiteElo "1780"]
[BlackElo "2600"]
[Result "0-1"]
[Round "01"]
[TimeControl "180+1"]
[Date "2022.03.16"]
[WhiteClock "0:00:01"]
[BlackClock "0:00:08"]

1. e4 {[%clk 0:03:00]}  e5 {[%clk 0:03:00]} 2. Nf3 {[%clk 0:03:00]}  Nc6 {[%clk 0:03:00]} 3. c3 {[%clk 0:02:58]}  Nf6 {[%clk 0:03:00]} 4. d4 {[%clk 0:02:57]}  d6 {[%clk 0:02:56]} 5. Be2 {[%clk 0:02:56]}  Bg4 {[%clk 0:02:54]} 6. O-O {[%clk 0:02:54]}  Be7 {[%clk 0:02:52]} 7. Nbd2 {[%clk 0:02:47]}  O-O {[%clk 0:02:51]} 8. h3 {[%clk 0:02:47]}  Bh5 {[%clk 0:02:51]} 9. Qc2 {[%clk 0:02:44]}  exd4 {[%clk 0:02:47]} 10. cxd4 {[%clk 0:02:44]}  Re8 {[%clk 0:02:45]} 11. Bd3 {[%clk 0:02:39]}  Bf8 {[%clk 0:02:39]} 12. a3 {[%clk 0:02:38]}  h6 {[%clk 0:02:36]} 13. b4 {[%clk 0:02:37]}  a6 {[%clk 0:02:33]} 14. Bb2 {[%clk 0:02:37]}  Qd7 {[%clk 0:02:31]} 15. Rac1 {[%clk 0:02:34]}  Rac8 {[%clk 0:02:27]} 16. Qb1 {[%clk 0:02:31]}  g6 {[%clk 0:02:23]} 17. d5 {[%clk 0:02:24]}  Ne5 {[%clk 0:02:19]} 18. Nxe5 {[%clk 0:02:19]}  dxe5 {[%clk 0:02:20]} 19. f4 {[%clk 0:02:19]}  Bg7 {[%clk 0:02:00]} 20. fxe5 {[%clk 0:02:17]}  Nh7 {[%clk 0:01:52]} 21. e6 {[%clk 0:02:16]}  fxe6 {[%clk 0:01:51]} 22. dxe6 {[%clk 0:02:14]}  Bd4+ {[%clk 0:01:43]} 23. Kh1 {[%clk 0:02:11]}  Qg7 {[%clk 0:01:39]} 24. Bxd4 {[%clk 0:02:03]}  Qxd4 {[%clk 0:01:40]} 25. Nb3 {[%clk 0:02:01]}  Qe3 {[%clk 0:01:31]} 26. Rce1 {[%clk 0:01:59]}  Qg5 {[%clk 0:01:27]} 27. Rf7 {[%clk 0:01:51]}  Rxe6 {[%clk 0:01:22]} 28. Ref1 {[%clk 0:01:47]}  Nf6 {[%clk 0:01:17]} 29. Bc4 {[%clk 0:01:40]}  Kxf7 {[%clk 0:01:16]} 30. Nc5 {[%clk 0:01:38]}  Re8 {[%clk 0:01:14]} 31. Qb3 {[%clk 0:01:33]}  Qe5 {[%clk 0:01:09]} 32. Nxe6 {[%clk 0:01:16]}  Rxe6 {[%clk 0:01:10]} 33. Qd3 {[%clk 0:01:05]}  Ke7 {[%clk 0:01:04]} 34. Bxe6 {[%clk 0:01:04]}  Qxe6 {[%clk 0:01:04]} 35. g4 {[%clk 0:01:03]}  Bxg4 {[%clk 0:00:43]} 36. hxg4 {[%clk 0:01:02]}  Nxg4 {[%clk 0:00:43]} 37. Qf3 {[%clk 0:00:54]}  Nf6 {[%clk 0:00:39]} 38. Re1 {[%clk 0:00:45]}  Qe5 {[%clk 0:00:36]} 39. Rg1 {[%clk 0:00:37]}  g5 {[%clk 0:00:29]} 40. Qf5 {[%clk 0:00:36]}  Qd4 {[%clk 0:00:14]} 41. e5 {[%clk 0:00:35]}  Qd5+ {[%clk 0:00:12]} 42. Rg2 {[%clk 0:00:32]}  Qd1+ {[%clk 0:00:08]} 43. Kh2 {[%clk 0:00:32]}  Qh5+ {[%clk 0:00:07]} 44. Kg1 {[%clk 0:00:32]}  Qd1+ {[%clk 0:00:07]} 45. Qf1 {[%clk 0:00:32]}  Qd4+ {[%clk 0:00:07]} 46. Qf2 {[%clk 0:00:31]}  Qxe5 {[%clk 0:00:08]} 47. Qe2 {[%clk 0:00:30]}  Ne4 {[%clk 0:00:08]} 48. Rg4 {[%clk 0:00:28]}  Qd4+ {[%clk 0:00:05]} 49. Kh2 {[%clk 0:00:21]}  Qf2+ {[%clk 0:00:02]} 50. Qxf2 {[%clk 0:00:20]}  Nxf2 {[%clk 0:00:03]} 51. Rd4 {[%clk 0:00:19]}  Ke6 {[%clk 0:00:02]} 52. Kg2 {[%clk 0:00:19]}  Ke5 {[%clk 0:00:03]} 53. Rd7 {[%clk 0:00:19]}  Ne4 {[%clk 0:00:03]} 54. Rxc7 {[%clk 0:00:18]}  b5 {[%clk 0:00:04]} 55. Rc6 {[%clk 0:00:17]}  Kd5 {[%clk 0:00:04]} 56. Rxa6 {[%clk 0:00:17]}  h5 {[%clk 0:00:04]} 57. Rb6 {[%clk 0:00:16]}  Kc4 {[%clk 0:00:04]} 58. Rh6 {[%clk 0:00:15]}  h4 {[%clk 0:00:04]} 59. Re6 {[%clk 0:00:14]}  Kd4 {[%clk 0:00:05]} 60. Kf3 {[%clk 0:00:12]}  Nd2+ {[%clk 0:00:06]} 61. Kg4 {[%clk 0:00:08]}  Nc4 {[%clk 0:00:06]} 62. Kxg5 {[%clk 0:00:06]}  h3 {[%clk 0:00:06]} 63. Rh6 {[%clk 0:00:06]}  Nxa3 {[%clk 0:00:07]} 64. Rxh3 {[%clk 0:00:05]}  Nc2 {[%clk 0:00:07]} 65. Kf5 {[%clk 0:00:05]}  Nxb4 {[%clk 0:00:07]} 66. Rh4+ {[%clk 0:00:04]}  Kc3 {[%clk 0:00:07]} 67. Ke6 {[%clk 0:00:04]}  Nd3 {[%clk 0:00:08]} 68. Kd5 {[%clk 0:00:02]}  b4 {[%clk 0:00:07]} 69. Rh3 {[%clk 0:00:01]}  b3 {[%clk 0:00:08]} 0-1


[Site "https://www.chess.com"]

[Event "Titled Tuesday Blitz March 15 Late 2022"]
[White "Chigaev, Maksim"]
[Black "Ciolek, Andreas"]
[WhiteFideId "4108116"]
[BlackFideId "12906727"]
[WhiteElo "2502"]
[BlackElo "2215"]
[Result "1-0"]
[Round "01"]
[TimeControl "180+1"]
[Date "2022.03.15"]
[WhiteClock "0:02:42"]
[BlackClock "0:02:13"]

1. d4 {[%clk 0:02:57]}  Nf6 {[%clk 0:02:56]} 2. Nf3 {[%clk 0:02:54]}  g6 {[%clk 0:02:57]} 3. c4 {[%clk 0:02:53]}  Bg7 {[%clk 0:02:55]} 4. Nc3 {[%clk 0:02:53]}  O-O {[%clk 0:02:55]} 5. e4 {[%clk 0:02:54]}  d6 {[%clk 0:02:55]} 6. Be2 {[%clk 0:02:54]}  Nbd7 {[%clk 0:02:54]} 7. O-O {[%clk 0:02:55]}  e5 {[%clk 0:02:55]} 8. Be3 {[%clk 0:02:55]}  Qe7 {[%clk 0:02:53]} 9. Qc2 {[%clk 0:02:55]}  c6 {[%clk 0:02:45]} 10. d5 {[%clk 0:02:54]}  c5 {[%clk 0:02:46]} 11. Bg5 {[%clk 0:02:55]}  h6 {[%clk 0:02:45]} 12. Bd2 {[%clk 0:02:53]}  Kh8 {[%clk 0:02:39]} 13. a3 {[%clk 0:02:53]}  Ng8 {[%clk 0:02:38]} 14. b4 {[%clk 0:02:53]}  b6 {[%clk 0:02:37]} 15. Rab1 {[%clk 0:02:45]}  f5 {[%clk 0:02:36]} 16. exf5 {[%clk 0:02:42]}  gxf5 {[%clk 0:02:33]} 17. g3 {[%clk 0:02:43]}  Ndf6 {[%clk 0:02:21]} 18. Nh4 {[%clk 0:02:42]}  e4 {[%clk 0:02:13]} 19. Ng6+ {[%clk 0:02:42]} 1-0


[Site "https://www.chess.com"]

[Event "Titled Tuesday Blitz March 15 Late 2022"]
[White "Constantinou, Peter"]
[Black "Jaferian, Koosha"]
[WhiteFideId "413038"]
[BlackFideId "12507440"]
[WhiteElo "2230"]
[BlackElo "2030"]
[Result "0-1"]
[Round "01"]
[TimeControl "180+1"]
[Date "2022.03.16"]
[WhiteClock "0:00:12"]
[BlackClock "0:00:10"]

1. e4 {[%clk 0:02:59]}  c6 {[%clk 0:02:59]} 2. Nc3 {[%clk 0:02:59]}  d5 {[%clk 0:03:00]} 3. Nf3 {[%clk 0:02:59]}  Bg4 {[%clk 0:02:59]} 4. h3 {[%clk 0:03:00]}  Bxf3 {[%clk 0:03:00]} 5. Qxf3 {[%clk 0:03:00]}  e6 {[%clk 0:03:01]} 6. Be2 {[%clk 0:03:00]}  Bc5 {[%clk 0:02:56]} 7. O-O {[%clk 0:02:59]}  Nd7 {[%clk 0:02:54]} 8. Rd1 {[%clk 0:02:59]}  Ne7 {[%clk 0:02:47]} 9. d4 {[%clk 0:02:59]}  Bd6 {[%clk 0:02:47]} 10. Bg5 {[%clk 0:02:52]}  O-O {[%clk 0:02:45]} 11. Bd3 {[%clk 0:02:51]}  h6 {[%clk 0:02:39]} 12. Bh4 {[%clk 0:02:49]}  Qe8 {[%clk 0:01:54]} 13. Re1 {[%clk 0:02:44]}  Ng6 {[%clk 0:01:50]} 14. Bg3 {[%clk 0:02:42]}  Bxg3 {[%clk 0:01:50]} 15. Qxg3 {[%clk 0:02:42]}  dxe4 {[%clk 0:01:42]} 16. Nxe4 {[%clk 0:02:42]}  Ne7 {[%clk 0:01:35]} 17. c4 {[%clk 0:02:23]}  Nf5 {[%clk 0:01:32]} 18. Qf4 {[%clk 0:02:05]}  Qd8 {[%clk 0:01:21]} 19. Nc3 {[%clk 0:01:46]}  Qf6 {[%clk 0:01:07]} 20. Bxf5 {[%clk 0:01:37]}  exf5 {[%clk 0:01:07]} 21. Rad1 {[%clk 0:01:28]}  Nb6 {[%clk 0:01:00]} 22. b3 {[%clk 0:01:27]}  Rad8 {[%clk 0:01:00]} 23. Qe5 {[%clk 0:01:24]}  Qg6 {[%clk 0:00:47]} 24. Re3 {[%clk 0:01:13]}  Kh7 {[%clk 0:00:17]} 25. Rg3 {[%clk 0:01:03]}  Nd7 {[%clk 0:00:17]} 26. Qc7 {[%clk 0:01:00]}  Qf6 {[%clk 0:00:17]} 27. Qxb7 {[%clk 0:01:00]}  Rfe8 {[%clk 0:00:11]} 28. Rf3 {[%clk 0:00:48]}  Nf8 {[%clk 0:00:10]} 29. Qxa7 {[%clk 0:00:46]}  Ne6 {[%clk 0:00:10]} 30. d5 {[%clk 0:00:40]}  Ng5 {[%clk 0:00:10]} 31. Rfd3 {[%clk 0:00:39]}  f4 {[%clk 0:00:08]} 32. Qd4 {[%clk 0:00:38]}  Qg6 {[%clk 0:00:06]} 33. Kf1 {[%clk 0:00:34]}  f3 {[%clk 0:00:06]} 34. g3 {[%clk 0:00:27]}  Nxh3 {[%clk 0:00:06]} 35. Qh4 {[%clk 0:00:24]}  Ng5 {[%clk 0:00:07]} 36. d6 {[%clk 0:00:17]}  c5 {[%clk 0:00:06]} 37. d7 {[%clk 0:00:17]}  Re7 {[%clk 0:00:07]} 38. Nd5 {[%clk 0:00:17]}  Rexd7 {[%clk 0:00:05]} 39. a4 {[%clk 0:00:18]}  Rd6 {[%clk 0:00:05]} 40. Qf4 {[%clk 0:00:17]}  Ne6 {[%clk 0:00:04]} 41. Qe5 {[%clk 0:00:16]}  Nd4 {[%clk 0:00:04]} 42. Re1 {[%clk 0:00:14]}  Qg4 {[%clk 0:00:04]} 43. Qe4+ {[%clk 0:00:14]}  Qxe4 {[%clk 0:00:04]} 44. Rxe4 {[%clk 0:00:15]}  f5 {[%clk 0:00:04]} 45. Rexd4 {[%clk 0:00:15]}  cxd4 {[%clk 0:00:04]} 46. Rxd4 {[%clk 0:00:16]}  Re6 {[%clk 0:00:04]} 47. a5 {[%clk 0:00:16]}  Rde8 {[%clk 0:00:04]} 48. Rd1 {[%clk 0:00:16]}  Re2 {[%clk 0:00:05]} 49. b4 {[%clk 0:00:16]}  Ra2 {[%clk 0:00:05]} 50. Ne3 {[%clk 0:00:16]}  g6 {[%clk 0:00:05]} 51. c5 {[%clk 0:00:16]}  g5 {[%clk 0:00:05]} 52. c6 {[%clk 0:00:16]}  f4 {[%clk 0:00:05]} 53. gxf4 {[%clk 0:00:16]}  gxf4 {[%clk 0:00:06]} 54. Rd7+ {[%clk 0:00:16]}  Kg6 {[%clk 0:00:06]} 55. Rd6+ {[%clk 0:00:16]}  Kg5 {[%clk 0:00:06]} 56. Rd5+ {[%clk 0:00:12]}  Kg6 {[%clk 0:00:07]} 57. Nd1 {[%clk 0:00:10]}  Ree2 {[%clk 0:00:06]} 58. c7 {[%clk 0:00:11]}  Rec2 {[%clk 0:00:07]} 59. Rd7 {[%clk 0:00:11]}  Rd2 {[%clk 0:00:05]} 60. Rxd2 {[%clk 0:00:10]}  Rxd2 {[%clk 0:00:05]} 61. Nc3 {[%clk 0:00:06]}  Rc2 {[%clk 0:00:05]} 62. Ke1 {[%clk 0:00:05]}  Rxc3 {[%clk 0:00:05]} 63. b5 {[%clk 0:00:06]}  Rxc7 {[%clk 0:00:06]} 64. b6 {[%clk 0:00:07]}  Rb7 {[%clk 0:00:07]} 65. Kd2 {[%clk 0:00:07]}  h5 {[%clk 0:00:07]} 66. Kc3 {[%clk 0:00:07]}  h4 {[%clk 0:00:08]} 67. Kb4 {[%clk 0:00:08]}  h3 {[%clk 0:00:08]} 68. Kb5 {[%clk 0:00:09]}  h2 {[%clk 0:00:09]} 69. Kc6 {[%clk 0:00:10]}  Rf7 {[%clk 0:00:09]} 70. b7 {[%clk 0:00:10]}  Rxb7 {[%clk 0:00:08]} 71. Kxb7 {[%clk 0:00:11]}  h1=Q {[%clk 0:00:09]} 72. a6 {[%clk 0:00:11]}  Qb1+ {[%clk 0:00:09]} 73. Kc7 {[%clk 0:00:11]}  Qc2+ {[%clk 0:00:09]} 74. Kb7 {[%clk 0:00:11]}  Qxf2 {[%clk 0:00:10]} 75. Kc7 {[%clk 0:00:12]}  Qc5+ {[%clk 0:00:10]} 0-1


[Site "https://www.chess.com"]

[Event "Titled Tuesday Blitz March 15 Late 2022"]
[White "Federzoni, Enzo"]
[Black "Kosteniuk, Alexandra"]
[WhiteFideId "2173301"]
[BlackFideId "4128125"]
[WhiteElo "1956"]
[BlackElo "2469"]
[Result "0-1"]
[Round "01"]
[TimeControl "180+1"]
[Date "2022.03.16"]
[WhiteClock "0:01:50"]
[BlackClock "0:02:11"]

1. c4 {[%clk 0:02:59]}  e5 {[%clk 0:02:59]} 2. g3 {[%clk 0:02:59]}  Nf6 {[%clk 0:02:58]} 3. Bg2 {[%clk 0:02:59]}  d5 {[%clk 0:02:59]} 4. cxd5 {[%clk 0:03:00]}  Nxd5 {[%clk 0:03:00]} 5. Nc3 {[%clk 0:03:01]}  Nb6 {[%clk 0:03:00]} 6. Nf3 {[%clk 0:02:58]}  Nc6 {[%clk 0:02:59]} 7. O-O {[%clk 0:02:58]}  Be7 {[%clk 0:02:59]} 8. e3 {[%clk 0:02:55]}  Bg4 {[%clk 0:02:53]} 9. a3 {[%clk 0:02:49]}  O-O {[%clk 0:02:51]} 10. Qc2 {[%clk 0:02:49]}  a5 {[%clk 0:02:45]} 11. b3 {[%clk 0:02:45]}  Qd7 {[%clk 0:02:44]} 12. Re1 {[%clk 0:02:41]}  Rad8 {[%clk 0:02:40]} 13. Ne4 {[%clk 0:02:19]}  Qd3 {[%clk 0:02:35]} 14. Qxd3 {[%clk 0:02:17]}  Rxd3 {[%clk 0:02:36]} 15. Bb2 {[%clk 0:02:15]}  Rxb3 {[%clk 0:02:28]} 16. Nxe5 {[%clk 0:02:04]}  Rxb2 {[%clk 0:02:27]} 17. Nxg4 {[%clk 0:02:01]}  h5 {[%clk 0:02:20]} 18. Nc3 {[%clk 0:01:50]}  hxg4 {[%clk 0:02:18]} 19. a4 {[%clk 0:01:50]}  Rxd2 {[%clk 0:02:17]} 20. Nb5 {[%clk 0:01:50]}  Bd6 {[%clk 0:02:11]} 0-1


[Site "https://www.chess.com"]

[Event "Titled Tuesday Blitz March 15 Late 2022"]
[White "Garriga Cazorla, Pere"]
[Black "Fernandez Siles, Luis"]
[WhiteFideId "32011601"]
[BlackFideId "2209420"]
[WhiteElo "2458"]
[BlackElo "2212"]
[Result "1-0"]
[Round "01"]
[TimeControl "180+1"]
[Date "2022.03.16"]
[WhiteClock "0:00:44"]
[BlackClock "0:00:19"]

1. Nf3 {[%clk 0:02:58]}  f5 {[%clk 0:02:58]} 2. e3 {[%clk 0:02:55]}  Nf6 {[%clk 0:02:57]} 3. d4 {[%clk 0:02:48]}  g6 {[%clk 0:02:57]} 4. c4 {[%clk 0:02:44]}  Bg7 {[%clk 0:02:57]} 5. Nc3 {[%clk 0:02:45]}  O-O {[%clk 0:02:57]} 6. Be2 {[%clk 0:02:43]}  d6 {[%clk 0:02:57]} 7. O-O {[%clk 0:02:42]}  Nc6 {[%clk 0:02:57]} 8. d5 {[%clk 0:02:38]}  Ne5 {[%clk 0:02:57]} 9. Nxe5 {[%clk 0:02:38]}  dxe5 {[%clk 0:02:58]} 10. c5 {[%clk 0:02:39]}  e4 {[%clk 0:02:45]} 11. Bc4 {[%clk 0:02:27]}  Kh8 {[%clk 0:02:45]} 12. h3 {[%clk 0:02:28]}  b6 {[%clk 0:02:24]} 13. c6 {[%clk 0:02:24]}  Ne8 {[%clk 0:02:22]} 14. Bd2 {[%clk 0:02:16]}  Nd6 {[%clk 0:02:22]} 15. Bb3 {[%clk 0:02:17]}  g5 {[%clk 0:02:18]} 16. f3 {[%clk 0:02:14]}  Ba6 {[%clk 0:02:07]} 17. Rf2 {[%clk 0:02:12]}  Bd3 {[%clk 0:02:06]} 18. fxe4 {[%clk 0:02:08]}  fxe4 {[%clk 0:01:59]} 19. Rxf8+ {[%clk 0:02:06]}  Qxf8 {[%clk 0:02:00]} 20. Bc2 {[%clk 0:01:57]}  Qf5 {[%clk 0:01:50]} 21. Bxd3 {[%clk 0:01:57]}  exd3 {[%clk 0:01:51]} 22. Qg4 {[%clk 0:01:50]}  Rf8 {[%clk 0:01:49]} 23. Re1 {[%clk 0:01:42]}  Qxg4 {[%clk 0:01:44]} 24. hxg4 {[%clk 0:01:43]}  Nc4 {[%clk 0:01:37]} 25. Ne4 {[%clk 0:01:33]}  Nxd2 {[%clk 0:01:32]} 26. Nxd2 {[%clk 0:01:34]}  Bxb2 {[%clk 0:01:32]} 27. Rd1 {[%clk 0:01:30]}  Be5 {[%clk 0:01:28]} 28. Nf3 {[%clk 0:01:27]}  Bf6 {[%clk 0:01:17]} 29. Rxd3 {[%clk 0:01:26]}  Rd8 {[%clk 0:01:15]} 30. e4 {[%clk 0:01:26]}  e5 {[%clk 0:01:12]} 31. Kf2 {[%clk 0:01:23]}  Kg7 {[%clk 0:01:12]} 32. Ke3 {[%clk 0:01:24]}  h6 {[%clk 0:01:13]} 33. Ra3 {[%clk 0:01:24]}  a5 {[%clk 0:01:11]} 34. Rb3 {[%clk 0:01:22]}  Kf7 {[%clk 0:01:11]} 35. Kd3 {[%clk 0:01:22]}  Ke7 {[%clk 0:01:11]} 36. Nd2 {[%clk 0:01:22]}  Kd6 {[%clk 0:01:09]} 37. Nc4+ {[%clk 0:01:21]}  Ke7 {[%clk 0:01:00]} 38. Ne3 {[%clk 0:01:18]}  Rh8 {[%clk 0:00:53]} 39. Nf5+ {[%clk 0:01:16]}  Kd8 {[%clk 0:00:50]} 40. d6 {[%clk 0:01:14]}  h5 {[%clk 0:00:48]} 41. Kc4 {[%clk 0:01:07]}  hxg4 {[%clk 0:00:47]} 42. Kd5 {[%clk 0:01:08]}  Rh2 {[%clk 0:00:25]} 43. Ke6 {[%clk 0:01:05]}  Bh8 {[%clk 0:00:25]} 44. Rd3 {[%clk 0:01:02]}  Rxg2 {[%clk 0:00:23]} 45. Ne7 {[%clk 0:00:44]}  Rh2 {[%clk 0:00:18]} 46. dxc7+ {[%clk 0:00:43]}  Kxc7 {[%clk 0:00:19]} 47. Rd7+ {[%clk 0:00:44]} 1-0


[Site "https://www.chess.com"]

[Event "Titled Tuesday Blitz March 15 Late 2022"]
[White "Grischuk, Alexander"]
[Black "VinceBlitzSociety"]
[WhiteFideId "4126025"]
[WhiteElo "2762"]
[BlackElo "2548"]
[Result "1-0"]
[Round "01"]
[TimeControl "180+1"]
[Date "2022.03.15"]
[WhiteClock "0:01:02"]
[BlackClock "0:01:48"]

1. e4 {[%clk 0:02:59]}  c5 {[%clk 0:02:58]} 2. Nc3 {[%clk 0:02:59]}  Nc6 {[%clk 0:02:57]} 3. Bb5 {[%clk 0:02:56]}  Nd4 {[%clk 0:02:55]} 4. Nf3 {[%clk 0:02:57]}  a6 {[%clk 0:02:45]} 5. Bd3 {[%clk 0:02:55]}  e6 {[%clk 0:02:41]} 6. O-O {[%clk 0:02:50]}  Nc6 {[%clk 0:02:41]} 7. b3 {[%clk 0:02:43]}  Nf6 {[%clk 0:02:38]} 8. Bb2 {[%clk 0:02:37]}  d6 {[%clk 0:02:37]} 9. Re1 {[%clk 0:02:35]}  Be7 {[%clk 0:02:27]} 10. e5 {[%clk 0:02:36]}  dxe5 {[%clk 0:02:27]} 11. Nxe5 {[%clk 0:02:37]}  Nxe5 {[%clk 0:02:27]} 12. Rxe5 {[%clk 0:02:38]}  b6 {[%clk 0:02:25]} 13. Qf3 {[%clk 0:02:35]}  Rb8 {[%clk 0:02:18]} 14. Qg3 {[%clk 0:02:23]}  Bd6 {[%clk 0:02:10]} 15. f4 {[%clk 0:02:20]}  Bxe5 {[%clk 0:02:05]} 16. fxe5 {[%clk 0:02:21]}  Nh5 {[%clk 0:02:05]} 17. Qg4 {[%clk 0:01:53]}  g6 {[%clk 0:02:04]} 18. Ne4 {[%clk 0:01:52]}  O-O {[%clk 0:01:56]} 19. Nf6+ {[%clk 0:01:08]}  Nxf6 {[%clk 0:01:54]} 20. exf6 {[%clk 0:01:09]}  Qd6 {[%clk 0:01:49]} 21. Qg5 {[%clk 0:01:02]}  Rd8 {[%clk 0:01:48]} 22. Be5 {[%clk 0:01:02]} 1-0


[Site "https://www.chess.com"]

[Event "Titled Tuesday Blitz March 15 Late 2022"]
[White "Kamsky, Gata"]
[Black "Bettalli, Francesco"]
[WhiteFideId "2000024"]
[BlackFideId "2816453"]
[WhiteElo "2645"]
[BlackElo "2216"]
[Result "1-0"]
[Round "01"]
[TimeControl "180+1"]
[Date "2022.03.16"]
[WhiteClock "0:00:38"]
[BlackClock "0:00:49"]

1. e4 {[%clk 0:03:00]}  e5 {[%clk 0:02:53]} 2. Nf3 {[%clk 0:02:59]}  Nf6 {[%clk 0:02:51]} 3. Nxe5 {[%clk 0:02:56]}  Nxe4 {[%clk 0:02:52]} 4. Qe2 {[%clk 0:02:55]}  Qe7 {[%clk 0:02:52]} 5. Qxe4 {[%clk 0:02:54]}  d6 {[%clk 0:02:52]} 6. d4 {[%clk 0:02:53]}  dxe5 {[%clk 0:02:53]} 7. dxe5 {[%clk 0:02:49]}  Nc6 {[%clk 0:02:53]} 8. Nc3 {[%clk 0:02:48]}  Qxe5 {[%clk 0:02:52]} 9. Qxe5+ {[%clk 0:02:47]}  Nxe5 {[%clk 0:02:53]} 10. Nb5 {[%clk 0:02:30]}  Bb4+ {[%clk 0:02:28]} 11. c3 {[%clk 0:02:30]}  Ba5 {[%clk 0:02:28]} 12. Bf4 {[%clk 0:02:29]}  f6 {[%clk 0:02:28]} 13. O-O-O {[%clk 0:02:16]}  O-O {[%clk 0:02:21]} 14. Bxe5 {[%clk 0:01:42]}  fxe5 {[%clk 0:02:22]} 15. Bc4+ {[%clk 0:01:37]}  Kh8 {[%clk 0:02:22]} 16. f3 {[%clk 0:01:35]}  e4 {[%clk 0:01:52]} 17. fxe4 {[%clk 0:01:31]}  Bg4 {[%clk 0:01:52]} 18. Rdf1 {[%clk 0:01:27]}  Rae8 {[%clk 0:01:44]} 19. Rxf8+ {[%clk 0:01:24]}  Rxf8 {[%clk 0:01:45]} 20. Rf1 {[%clk 0:01:11]}  Re8 {[%clk 0:01:29]} 21. h3 {[%clk 0:00:56]}  Bh5 {[%clk 0:01:28]} 22. e5 {[%clk 0:00:46]}  h6 {[%clk 0:01:22]} 23. e6 {[%clk 0:00:45]}  Bb6 {[%clk 0:01:16]} 24. Nd4 {[%clk 0:00:44]}  Bc5 {[%clk 0:01:11]} 25. b4 {[%clk 0:00:43]}  Be7 {[%clk 0:01:08]} 26. Kb2 {[%clk 0:00:41]}  Bf6 {[%clk 0:01:08]} 27. Kb3 {[%clk 0:00:40]}  Re7 {[%clk 0:01:02]} 28. a4 {[%clk 0:00:39]}  Be8 {[%clk 0:01:01]} 29. Nf5 {[%clk 0:00:38]}  b5 {[%clk 0:00:49]} 30. axb5 {[%clk 0:00:38]} 1-0


[Site "https://www.chess.com"]

[Event "Titled Tuesday Blitz March 15 Late 2022"]
[White "Khanin, Semen"]
[Black "Sinitsina, Anastassia"]
[WhiteFideId "4111990"]
[BlackFideId "4504640"]
[WhiteElo "2442"]
[BlackElo "2144"]
[Result "1-0"]
[Round "01"]
[TimeControl "180+1"]
[Date "2022.03.16"]
[WhiteClock "0:00:30"]
[BlackClock "0:00:34"]

1. e4 {[%clk 0:03:00]}  e5 {[%clk 0:02:59]} 2. Nf3 {[%clk 0:03:00]}  Nc6 {[%clk 0:02:59]} 3. d4 {[%clk 0:02:59]}  exd4 {[%clk 0:02:59]} 4. Nxd4 {[%clk 0:02:59]}  Nf6 {[%clk 0:03:00]} 5. Nxc6 {[%clk 0:02:59]}  bxc6 {[%clk 0:03:00]} 6. Bd3 {[%clk 0:02:51]}  d5 {[%clk 0:02:56]} 7. exd5 {[%clk 0:02:50]}  cxd5 {[%clk 0:02:56]} 8. O-O {[%clk 0:02:50]}  Be7 {[%clk 0:02:55]} 9. c4 {[%clk 0:02:49]}  d4 {[%clk 0:02:48]} 10. Bg5 {[%clk 0:02:47]}  O-O {[%clk 0:02:44]} 11. Nd2 {[%clk 0:02:47]}  h6 {[%clk 0:02:34]} 12. Bh4 {[%clk 0:02:43]}  c5 {[%clk 0:02:29]} 13. Re1 {[%clk 0:02:42]}  Be6 {[%clk 0:02:23]} 14. h3 {[%clk 0:02:35]}  Rb8 {[%clk 0:02:12]} 15. b3 {[%clk 0:02:35]}  Re8 {[%clk 0:02:07]} 16. Qf3 {[%clk 0:02:34]}  Qa5 {[%clk 0:02:03]} 17. Re2 {[%clk 0:02:33]}  Qa6 {[%clk 0:01:39]} 18. Rae1 {[%clk 0:02:32]}  Qxa2 {[%clk 0:01:23]} 19. Bxf6 {[%clk 0:02:29]}  Bxf6 {[%clk 0:01:19]} 20. Ne4 {[%clk 0:01:49]}  Qa5 {[%clk 0:00:59]} 21. Nxf6+ {[%clk 0:01:45]}  gxf6 {[%clk 0:00:59]} 22. Qxf6 {[%clk 0:01:45]}  Rxb3 {[%clk 0:00:58]} 23. Rxe6 {[%clk 0:00:33]}  Rxe6 {[%clk 0:00:46]} 24. Bh7+ {[%clk 0:00:30]}  Kxh7 {[%clk 0:00:34]} 25. Qxf7+ {[%clk 0:00:30]}  Kh8 {[%clk 0:00:34]} 26. Rxe6 {[%clk 0:00:30]} 1-0


[Site "https://www.chess.com"]

[Event "Titled Tuesday Blitz March 15 Late 2022"]
[White "Kollars, Dmitrij"]
[Black "Janaszak, Dawid"]
[WhiteFideId "12909572"]
[BlackFideId "1119206"]
[WhiteElo "2584"]
[BlackElo "2199"]
[Result "1-0"]
[Round "01"]
[TimeControl "180+1"]
[Date "2022.03.15"]
[WhiteClock "0:00:43"]
[BlackClock "0:00:03"]

1. Nf3 {[%clk 0:02:53]}  g6 {[%clk 0:02:59]} 2. e4 {[%clk 0:02:53]}  c5 {[%clk 0:02:58]} 3. c3 {[%clk 0:02:52]}  d5 {[%clk 0:02:56]} 4. exd5 {[%clk 0:02:51]}  Qxd5 {[%clk 0:02:57]} 5. d4 {[%clk 0:02:51]}  Bg7 {[%clk 0:02:56]} 6. Na3 {[%clk 0:02:51]}  cxd4 {[%clk 0:02:53]} 7. Nb5 {[%clk 0:02:50]}  Na6 {[%clk 0:02:48]} 8. Be3 {[%clk 0:02:50]}  Nf6 {[%clk 0:02:43]} 9. Qxd4 {[%clk 0:02:49]}  O-O {[%clk 0:02:41]} 10. Bc4 {[%clk 0:02:45]}  Qh5 {[%clk 0:02:36]} 11. Qe5 {[%clk 0:02:39]}  Bf5 {[%clk 0:02:28]} 12. Bd4 {[%clk 0:02:38]}  e6 {[%clk 0:02:08]} 13. O-O {[%clk 0:02:30]}  Ne8 {[%clk 0:01:57]} 14. Qg3 {[%clk 0:02:21]}  Be4 {[%clk 0:01:50]} 15. Ne5 {[%clk 0:02:14]}  b6 {[%clk 0:01:26]} 16. Nd7 {[%clk 0:02:04]}  e5 {[%clk 0:00:40]} 17. Be3 {[%clk 0:01:53]}  Rc8 {[%clk 0:00:23]} 18. Bb3 {[%clk 0:01:53]}  Nc5 {[%clk 0:00:21]} 19. Bxc5 {[%clk 0:01:45]}  bxc5 {[%clk 0:00:22]} 20. Nxf8 {[%clk 0:01:45]}  Kxf8 {[%clk 0:00:19]} 21. Rfe1 {[%clk 0:01:44]}  Bb7 {[%clk 0:00:16]} 22. Rad1 {[%clk 0:01:40]}  c4 {[%clk 0:00:15]} 23. Bc2 {[%clk 0:01:34]}  Bf6 {[%clk 0:00:13]} 24. h3 {[%clk 0:01:20]}  Rc5 {[%clk 0:00:11]} 25. Nd6 {[%clk 0:01:14]}  Nxd6 {[%clk 0:00:08]} 26. Rxd6 {[%clk 0:01:14]}  Kg7 {[%clk 0:00:08]} 27. Be4 {[%clk 0:01:01]}  Rb5 {[%clk 0:00:05]} 28. Bxb7 {[%clk 0:00:55]}  Rxb7 {[%clk 0:00:06]} 29. Rd2 {[%clk 0:00:55]}  Re7 {[%clk 0:00:06]} 30. Qg4 {[%clk 0:00:54]}  Qh6 {[%clk 0:00:06]} 31. Rde2 {[%clk 0:00:52]}  Bg5 {[%clk 0:00:05]} 32. Rxe5 {[%clk 0:00:49]}  Rxe5 {[%clk 0:00:06]} 33. Rxe5 {[%clk 0:00:50]}  Bf6 {[%clk 0:00:05]} 34. Re2 {[%clk 0:00:47]}  Qc1+ {[%clk 0:00:06]} 35. Kh2 {[%clk 0:00:48]}  Qd1 {[%clk 0:00:05]} 36. g3 {[%clk 0:00:45]}  h5 {[%clk 0:00:05]} 37. Qe4 {[%clk 0:00:44]}  h4 {[%clk 0:00:04]} 38. g4 {[%clk 0:00:44]}  Bd8 {[%clk 0:00:04]} 39. Qd4+ {[%clk 0:00:42]}  Qxd4 {[%clk 0:00:03]} 40. cxd4 {[%clk 0:00:42]}  Bf6 {[%clk 0:00:03]} 41. d5 {[%clk 0:00:43]} 1-0


[Site "https://www.chess.com"]